[Event "Fagernes Chess GM-Swiss 2024"]
[Site "Fagernes"]
[Date "2024.03.28"]
[Round "6.33"]
[White "Sian, Shadi"]
[Black "Moreby, James"]
[Result "1/2-1/2"]
[ECO "D31"]
[WhiteElo "2076"]
[BlackElo "2260"]
[Annotator "RC"]
[PlyCount "110"]
[EventDate "2024.03.25"]
[EventType "swiss"]
[EventCountry "NOR"]
[SourceTitle "playchess.com"]
[Source "ChessBase"]
[SourceQuality "1"]
[TimeControl "40/6000+30:2400+30"]

1. d4 {[%emt 0:01:35]} d5 {[%emt 0:02:46]} 2. c4 {[%emt 0:00:05]} e6 {[%emt 0:00:30]} 3. Nc3 {[%emt 0:00:05]} c6 {[%emt 0:00:02]} 4. cxd5 {[%emt 0:00:37]} exd5 {[%emt 0:00:46]} 5. Nf3 {[%emt 0:01:00]} Bf5 {[%emt 0:00:23]} 6. g3 {[%emt 0:04:31]} Bd6 {[%emt 0:08:29]} 7. Bg2 {[%emt 0:00:45]} h6 {[%emt 0:10:32]} 8. O-O {[%emt 0:05:30]} Nf6 {[%emt 0:00:16]} 9. Nd2 {[%emt 0:10:00]} O-O {[%emt 0:04:40]} 10. e4 {[%emt 0:04:16]} dxe4 {[%emt 0:01:09]} 11. Ndxe4 {[%emt 0:00:04]} Nxe4 {[%emt 0:09:28]} 12. Nxe4 {[%emt 0:00:06]} Be6 {[%emt 0:13:16]} 13. Nc5 {[%emt 0:21:29]} Bxc5 {[%emt 0:03:37]} 14. dxc5 {[%emt 0:00:01]} Na6 {[%emt 0:04:55]} 15. Bf4 {[%emt 0:02:35]} Qf6 {[%emt 0:03:19]} 16. Bd6 {[%emt 0:03:43]} Rfc8 {[%emt 0:02:26]} 17. Qd2 {[%emt 0:02:23]} Nc7 {[%emt 0:02:35]} 18. Rfe1 {[%emt 0:19:09]} Nb5 {[%emt 0:11:38]} 19. Be5 {[%emt 0:00:27]} Qg5 {[%emt 0:06:37]} 20. Qxg5 {[%emt 0:03:20]} hxg5 {[%emt 0:00:07]} 21. a4 {[%emt 0:08:12]} Nc7 {[%emt 0:00:02]} 22. Bxc7 {[%emt 0:01:17]} Rxc7 {[%emt 0:00:01]} 23. a5 {[%emt 0:00:06]} a6 {[%emt 0:00:26]} 24. Rad1 {[%emt 0:02:20]} Rcc8 {[%emt 0:06:21]} 25. Rd4 {[%emt 0:02:31]} Rd8 {[%emt 0:00:34]} 26. Red1 {[%emt 0:00:16]} Rxd4 {[%emt 0:00:06]} 27. Rxd4 {[%emt 0:00:02]} Re8 {[%emt 0:00:27]} 28. f4 {[%emt 0:10:07]} gxf4 {[%emt 0:00:17]} 29. Rxf4 {[%emt 0:00:04]} Rd8 {[%emt 0:00:28]} 30. Rb4 {[%emt 0:00:28]} Rd1+ {[%emt 0:03:59]} 31. Kf2 {[%emt 0:00:04]} Rd2+ {[%emt 0:00:27]} 32. Kg1 {[%emt 0:00:04]} Bc8 {[%emt 0:01:14]} 33. Bf3 {[%emt 0:04:57]} Kf8 {[%emt 0:00:27]} 34. Rh4 {[%emt 0:01:39]} Ke7 {[%emt 0:00:59]} 35. Re4+ {[%emt 0:00:40]} Kd8 {[%emt 0:02:10]} 36. b4 {[%emt 0:00:20]} Be6 {[%emt 0:04:42]} 37. h4 {[%emt 0:02:10]} Bd5 {[%emt 0:03:30]} 38. Rf4 {[%emt 0:00:04]} Bxf3 {[%emt 0:00:18]} 39. Rxf3 {[%emt 0:00:01]} f6 {[%emt 0:00:33]} 40. Rf4 {[%emt 0:00:44]} Ke7 {[%emt 0:01:07]} 41. g4 {[%emt 0:41:19]} Rb2 {[%emt 0:43:26]} 42. Re4+ {[%emt 0:00:00]} Kf7 {[%emt 0:00:00]} 43. Rd4 {[%emt 0:00:00]} Kg6 {[%emt 0:00:00]} 44. h5+ {[%emt 0:00:00]} Kh6 {[%emt 0:00:00]} 45. Kf1 {[%emt 0:00:00]} g6 {[%emt 0:00:00]} 46. hxg6 {[%emt 0:00:00]} Kxg6 {[%emt 0:00:00]} 47. Ke1 {[%emt 0:00:00]} f5 {[%emt 0:00:00]} 48. gxf5+ {[%emt 0:00:00]} Kxf5 {[%emt 0:00:00]} 49. Kd1 {[%emt 0:00:00]} Ke5 {[%emt 0:00:00]} 50. Rh4 {[%emt 0:00:00]} Kd5 {[%emt 0:05:00]} 51. Kc1 {[%emt 0:00:03]} Rg2 52. Rh7 {[%emt 0:00:03]} Kc4 {[%emt 0:00:02]} 53. Rxb7 {[%emt 0:00:03]} Rg4 {[%emt 0:00:09]} 54. Kd1 {[%emt 0:00:03]} Kc3 55. Rb6 Rxb4 1/2-1/2

[Event "Fagernes Chess GM-Swiss 2024"]
[Site "Fagernes"]
[Date "2024.03.28"]
[Round "6.34"]
[White "Brattgjerd, Isak Vinh"]
[Black "Zheng, Harry Z"]
[Result "1-0"]
[ECO "C96"]
[WhiteElo "2228"]
[BlackElo "2077"]
[Annotator "RC"]
[PlyCount "91"]
[EventDate "2024.03.25"]
[EventType "swiss"]
[EventCountry "NOR"]
[SourceTitle "playchess.com"]
[Source "ChessBase"]
[SourceQuality "1"]
[TimeControl "40/6000+30:2400+30"]

1. e4 {[%emt 0:04:36]} e5 {[%emt 0:00:10]} 2. Nf3 {[%emt 0:00:03]} Nc6 {[%emt 0:00:15]} 3. Bb5 {[%emt 0:00:09]} a6 {[%emt 0:00:10]} 4. Ba4 {[%emt 0:00:03]} Nf6 {[%emt 0:00:16]} 5. O-O {[%emt 0:00:05]} Be7 {[%emt 0:00:19]} 6. Re1 {[%emt 0:00:10]} b5 {[%emt 0:00:13]} 7. Bb3 {[%emt 0:00:02]} d6 {[%emt 0:00:15]} 8. c3 {[%emt 0:00:03]} O-O {[%emt 0:00:16]} 9. h3 {[%emt 0:00:02]} Na5 {[%emt 0:00:15]} 10. Bc2 {[%emt 0:00:03]} c5 {[%emt 0:00:14]} 11. d4 {[%emt 0:00:02]} Nd7 {[%emt 0:00:19]} 12. d5 {[%emt 0:00:05]} Nb6 {[%emt 0:00:29]} 13. Nbd2 {[%emt 0:00:06]} Nb7 {[%emt 0:00:53]} 14. c4 {[%emt 0:00:04]} bxc4 {[%emt 0:06:29]} 15. Qe2 {[%emt 0:02:18]} Na5 {[%emt 0:20:52]} 16. Nf1 {[%emt 0:02:23]} Bd7 {[%emt 0:03:32]} 17. Bd2 {[%emt 0:01:20]} c3 {[%emt 0:08:14]} 18. Bxc3 {[%emt 0:00:12]} Na4 {[%emt 0:03:14]} 19. Ne3 {[%emt 0:02:06]} Nxc3 {[%emt 0:08:40]} 20. bxc3 {[%emt 0:00:08]} Qc7 {[%emt 0:00:16]} 21. c4 {[%emt 0:15:57]} Rfb8 {[%emt 0:05:48]} 22. Kh1 {[%emt 0:05:11]} Rb2 {[%emt 0:07:49]} 23. Qd3 {[%emt 0:00:49]} Rab8 {[%emt 0:03:05]} 24. Rg1 {[%emt 0:01:16]} R2b4 {[%emt 0:05:16]} 25. Qc3 {[%emt 0:13:07]} f5 {[%emt 0:12:21]} 26. a3 {[%emt 0:04:48]} R4b7 {[%emt 0:02:11]} 27. Nd2 {[%emt 0:13:08]} fxe4 {[%emt 0:09:53]} 28. Bxe4 {[%emt 0:02:19]} Nb3 {[%emt 0:02:31]} 29. Nxb3 {[%emt 0:00:29]} Rxb3 {[%emt 0:00:08]} 30. Qc2 {[%emt 0:00:02]} h6 {[%emt 0:01:12]} 31. Rgb1 {[%emt 0:05:16]} Ba4 {[%emt 0:02:40]} 32. Qe2 {[%emt 0:01:40]} Bd7 {[%emt 0:05:19]} 33. Rxb3 {[%emt 0:00:48]} Rxb3 {[%emt 0:00:08]} 34. Bc2 {[%emt 0:00:04]} Rb8 {[%emt 0:01:27]} 35. Qd3 {[%emt 0:00:19]} Bf6 {[%emt 0:00:26]} 36. Qh7+ {[%emt 0:02:55]} Kf8 {[%emt 0:00:47]} 37. Rf1 {[%emt 0:07:37]} Qc8 {[%emt 0:01:29]} 38. f4 {[%emt 0:04:52]} Ke7 {[%emt 0:00:55]} 39. fxe5 {[%emt 0:00:34]} dxe5 {[%emt 0:00:10]} 40. d6+ {[%emt 0:19:36]} Kxd6 {[%emt 0:00:21]} 41. Rd1+ {[%emt 0:40:54]} Kc7 {[%emt 0:14:58]} 42. Nd5+ {[%emt 0:00:00]} Kc6 {[%emt 0:01:18]} 43. Nxf6 {[%emt 0:00:00]} Bxh3 {[%emt 0:00:56]} 44. Qe4+ {[%emt 0:00:00]} Kb6 {[%emt 0:00:23]} 45. Nd5+ {[%emt 0:00:00]} Ka7 {[%emt 0:00:25]} 46. Ne7 {[%emt 0:00:00]} 1-0

[Event "Fagernes Chess GM-Swiss 2024"]
[Site "Fagernes"]
[Date "2024.03.28"]
[Round "6.35"]
[White "Skotheim, Andreas"]
[Black "Holand, Per Fredrik"]
[Result "1-0"]
[ECO "B21"]
[WhiteElo "2214"]
[BlackElo "2068"]
[Annotator "RC"]
[PlyCount "75"]
[EventDate "2024.03.25"]
[EventType "swiss"]
[EventCountry "NOR"]
[SourceTitle "playchess.com"]
[Source "ChessBase"]
[SourceQuality "1"]
[TimeControl "40/6000+30:2400+30"]

1. e4 {[%emt 0:04:07]} c5 {[%emt 0:16:05]} 2. Nc3 {[%emt 0:00:00]} Nc6 {[%emt 0:00:05]} 3. Bb5 {[%emt 0:00:00]} g6 {[%emt 0:03:22]} 4. Bxc6 {[%emt 0:00:00]} dxc6 {[%emt 0:00:12]} 5. d3 {[%emt 0:00:00]} Bg7 {[%emt 0:00:08]} 6. f4 {[%emt 0:00:48]} Nf6 {[%emt 0:00:37]} 7. Nf3 {[%emt 0:00:55]} O-O {[%emt 0:00:12]} 8. O-O {[%emt 0:01:25]} a5 {[%emt 0:01:20]} 9. a4 {[%emt 0:06:57]} b6 {[%emt 0:00:21]} 10. Qe1 {[%emt 0:03:46]} Ne8 {[%emt 0:05:13]} 11. Qh4 {[%emt 0:09:46]} Nc7 {[%emt 0:00:47]} 12. Ng5 {[%emt 0:21:31]} h6 {[%emt 0:01:54]} 13. Nf3 {[%emt 0:00:28]} e6 {[%emt 0:03:43]} 14. Qf2 {[%emt 0:04:08]} Na6 {[%emt 0:10:32]} 15. e5 {[%emt 0:12:37]} Nb4 {[%emt 0:03:08]} 16. Ne4 {[%emt 0:04:04]} Ba6 {[%emt 0:00:26]} 17. Nd6 {[%emt 0:03:18]} f6 {[%emt 0:01:17]} 18. Qe2 {[%emt 0:02:20]} fxe5 {[%emt 0:00:55]} 19. fxe5 {[%emt 0:00:25]} Nd5 {[%emt 0:04:57]} 20. Qe4 {[%emt 0:03:23]} Ne7 {[%emt 0:01:06]} 21. Qg4 {[%emt 0:04:28]} Qd7 {[%emt 0:00:28]} 22. Bd2 {[%emt 0:01:53]} Kh7 {[%emt 0:01:22]} 23. Qh3 {[%emt 0:06:24]} Nf5 {[%emt 0:02:29]} 24. Ne4 {[%emt 0:03:01]} Kg8 {[%emt 0:04:57]} 25. Kh1 {[%emt 0:05:19]} c4 {[%emt 0:12:31]} 26. g4 {[%emt 0:01:40]} cxd3 {[%emt 0:01:19]} 27. gxf5 {[%emt 0:00:29]} dxc2 {[%emt 0:00:07]} 28. f6 {[%emt 0:01:50]} Bxf1 {[%emt 0:00:10]} 29. Qxf1 {[%emt 0:01:05]} Qd5 {[%emt 0:01:05]} 30. fxg7 {[%emt 0:02:30]} Qxe4 {[%emt 0:00:13]} 31. gxf8=Q+ {[%emt 0:00:13]} Rxf8 {[%emt 0:00:10]} 32. Ra3 {[%emt 0:00:32]} Rd8 {[%emt 0:02:53]} 33. Re3 {[%emt 0:01:54]} Qf5 {[%emt 0:01:22]} 34. Qe2 {[%emt 0:02:51]} Qg4 {[%emt 0:01:26]} 35. Rd3 {[%emt 0:01:06]} Rf8 {[%emt 0:00:27]} 36. Bxh6 {[%emt 0:01:05]} g5 {[%emt 0:02:17]} 37. Qxc2 {[%emt 0:00:23]} Rxf3 {[%emt 0:00:18]} 38. Rd8+ {[%emt 0:00:09]} 1-0

[Event "Fagernes Chess GM-Swiss 2024"]
[Site "Fagernes"]
[Date "2024.03.28"]
[Round "6.36"]
[White "Shivika Rohilla"]
[Black "Aniruddh Chatterjee"]
[Result "1/2-1/2"]
[ECO "E04"]
[WhiteElo "2003"]
[BlackElo "2182"]
[Annotator "RC"]
[PlyCount "51"]
[EventDate "2024.03.25"]
[EventType "swiss"]
[EventCountry "NOR"]
[SourceTitle "playchess.com"]
[Source "ChessBase"]
[SourceQuality "1"]
[TimeControl "40/6000+30:2400+30"]

1. d4 {[%emt 0:01:27]} Nf6 {[%emt 0:09:40]} 2. c4 {[%emt 0:00:12]} e6 {[%emt 0:00:04]} 3. g3 {[%emt 0:00:06]} d5 {[%emt 0:01:19]} 4. Nf3 {[%emt 0:00:07]} dxc4 {[%emt 0:00:18]} 5. Bg2 {[%emt 0:00:10]} c6 {[%emt 0:00:22]} 6. Ne5 {[%emt 0:00:24]} Bb4+ {[%emt 0:00:29]} 7. Bd2 {[%emt 0:00:10]} Be7 {[%emt 0:00:06]} 8. e3 {[%emt 0:00:07]} b5 {[%emt 0:00:07]} 9. b3 {[%emt 0:00:16]} cxb3 {[%emt 0:02:23]} 10. axb3 {[%emt 0:00:05]} Nd5 {[%emt 0:00:53]} 11. Nd3 {[%emt 0:04:16]} a5 {[%emt 0:01:58]} 12. O-O {[%emt 0:15:05]} O-O {[%emt 0:00:33]} 13. Nc3 {[%emt 0:13:02]} Bb7 {[%emt 0:01:36]} 14. e4 {[%emt 0:00:53]} Nxc3 {[%emt 0:20:29]} 15. Bxc3 {[%emt 0:00:07]} Nd7 {[%emt 0:00:15]} 16. e5 {[%emt 0:03:54]} Qb6 {[%emt 0:03:17]} 17. Qg4 {[%emt 0:02:00]} c5 {[%emt 0:04:11]} 18. Bxb7 {[%emt 0:14:31]} Qxb7 {[%emt 0:00:15]} 19. Bxa5 {[%emt 0:00:30]} b4 {[%emt 0:13:02]} 20. Nxc5 {[%emt 0:08:47]} Bxc5 {[%emt 0:10:28]} 21. dxc5 {[%emt 0:05:17]} Nxe5 {[%emt 0:00:38]} 22. Qxb4 {[%emt 0:00:14]} Nf3+ {[%emt 0:00:13]} 23. Kh1 {[%emt 0:00:42]} Qc6 {[%emt 0:02:20]} 24. Qb6 {[%emt 0:00:37]} Qe4 {[%emt 0:01:49]} 25. Qb4 {[%emt 0:00:23]} Qc6 {[%emt 0:01:14]} 26. Qb6 {[%emt 0:00:04]} 1/2-1/2

[Event "Fagernes Chess GM-Swiss 2024"]
[Site "Fagernes"]
[Date "2024.03.28"]
[Round "6.37"]
[White "Anishka Vikram"]
[Black "Myagmarsuren, Evsuld"]
[Result "1/2-1/2"]
[ECO "D45"]
[WhiteElo "1995"]
[BlackElo "2138"]
[Annotator "NA RC"]
[PlyCount "59"]
[EventDate "2024.03.25"]
[EventType "swiss"]
[EventCountry "NOR"]
[SourceTitle "playchess.com"]
[Source "ChessBase"]
[SourceQuality "1"]
[TimeControl "40/6000+30:2400+30"]

1. d4 {[%emt 0:01:15]} d5 {[%emt 0:00:09]} 2. c4 {[%emt 0:00:19]} e6 {[%emt 0:00:03]} 3. Nc3 {[%emt 0:00:13]} c6 {[%emt 0:00:18]} 4. e3 {[%emt 0:00:29]} Nf6 {[%emt 0:00:07]} 5. Nf3 {[%emt 0:00:10]} Nbd7 {[%emt 0:00:07]} 6. Qc2 {[%emt 0:00:23]} Bd6 {[%emt 0:00:08]} 7. b3 {[%emt 0:02:13]} O-O {[%emt 0:00:07]} 8. Bd3 {[%emt 0:00:08]} e5 {[%emt 0:01:47]} 9. cxd5 {[%emt 0:07:49] D45: Semi-Slav: 5 e3.} cxd5 {[%emt 0:01:48]} 10. Nb5 {[%emt 0:14:46]} Bb8 {[%emt 0:03:21]} (10... Bb4+ $11 {kam in Betracht.} 11. Bd2 Bxd2+ 12. Nxd2 e4) 11. dxe5 {[%emt 0:07:45]} Nxe5 {[%emt 0:00:17]} 12. Nxe5 {[%emt 0:02:51]} Bxe5 {[%emt 0:00:06]} 13. Bb2 {[%emt 0:01:54]} Re8 {[%emt 0:20:35]} 14. Nd4 {[%emt 0:27:45]} (14. Bxe5 $14 {ist eher angebracht.} Rxe5 15. O-O) 14... h6 {[%emt 0:04:05]} 15. O-O {[%emt 0:01:24]} Bg4 {[%emt 0:02:35]} 16. h3 {[%emt 0:02:05]} Rc8 {[%emt 0:01:45]} 17. Qd2 {[%emt 0:01:02]} Bd7 {[%emt 0:01:35]} 18. Rac1 {[%emt 0:07:48]} Ne4 {[%emt 0:03:00]} 19. Qe2 {[%emt 0:02:30]} (19. Rxc8 $5 Bxc8 20. Qc2 $15) 19... a6 $11 {[%emt 0:02:11]} 20. Rxc8 {[%emt 0:01:35]} Bxc8 {[%emt 0:00:17]} 21. Nf3 {[%emt 0:05:31]} Bb8 {[%emt 0:00:22]} 22. Rd1 {[%emt 0:01:13]} Bf5 {[%emt 0:01:28]} 23. Bc4 {[%emt 0:01:55]} Be6 {[%emt 0:03:02]} 24. Bxd5 {[%emt 0:03:36]} Bxd5 {[%emt 0:00:08]} 25. Qd3 {[%emt 0:00:08]} Qe7 {[%emt 0:01:04]} 26. Qxd5 {[%emt 0:01:30]} Nxf2 {[%emt 0:02:02]} 27. Qd4 {[%emt 0:00:56]} Be5 {[%emt 0:00:05]} 28. Nxe5 {[%emt 0:00:43]} Nxd1 {[%emt 0:00:08]} 29. Qxd1 {[%emt 0:00:31]} f6 {[%emt 0:00:25]} 30. Ng4 {[%emt 0:03:06]} 1/2-1/2

[Event "Fagernes Chess GM-Swiss 2024"]
[Site "Fagernes"]
[Date "2024.03.28"]
[Round "6.38"]
[White "Skramstad, Oda Kofoed"]
[Black "Southcott-Moyers, Indy"]
[Result "1/2-1/2"]
[ECO "D26"]
[WhiteElo "1945"]
[BlackElo "2120"]
[Annotator "NA RC"]
[PlyCount "45"]
[EventDate "2024.03.25"]
[EventType "swiss"]
[EventCountry "NOR"]
[SourceTitle "playchess.com"]
[Source "ChessBase"]
[SourceQuality "1"]
[TimeControl "40/6000+30:2400+30"]

1. d4 {[%emt 0:00:54]} d5 {[%emt 0:00:08]} 2. c4 {[%emt 0:00:08]} e6 {[%emt 0:00:05]} 3. Nc3 {[%emt 0:00:05]} Nf6 {[%emt 0:00:05]} 4. Bg5 {[%emt 0:00:50]} dxc4 {[%emt 0:09:00]} 5. e3 {[%emt 0:04:48]} c5 {[%emt 0:11:02]} 6. Nf3 {[%emt 0:09:45]} cxd4 {[%emt 0:08:59]} 7. exd4 {[%emt 0:01:03]} Be7 {[%emt 0:00:38]} 8. Bxc4 {[%emt 0:01:24]} Nc6 {[%emt 0:00:57]} 9. O-O {[%emt 0:01:25]} O-O {[%emt 0:00:24]} 10. Re1 {[%emt 0:09:51]} a6 {[%emt 0:04:59]} (10... b6 $11) 11. Rc1 {[%emt 0:11:44]} b5 {[%emt 0:09:48]} 12. Bb3 {[%emt 0:01:44]} Bb7 {[%emt 0:05:23]} 13. Bxf6 {[%emt 0:05:55]} Bxf6 {[%emt 0:00:55]} 14. d5 {[%emt 0:00:28]} exd5 {[%emt 0:07:20]} 15. Nxd5 {[%emt 0:04:47]} Na5 $11 {[%emt 0:08:19]} 16. Nxf6+ {[%emt 0:06:08]} Qxf6 {[%emt 0:00:19]} 17. Ne5 {[%emt 0:00:47]} Nxb3 {[%emt 0:04:36]} 18. Qxb3 {[%emt 0:00:39]} Rad8 {[%emt 0:00:29]} 19. h3 {[%emt 0:18:36]} Qg5 {[%emt 0:10:08]} 20. Nf3 {[%emt 0:08:22]} Qf6 {[%emt 0:02:04]} 21. Ne5 {[%emt 0:02:23]} Qg5 {[%emt 0:02:28]} 22. Nf3 {[%emt 0:00:47]} Qf6 {[%emt 0:03:23]} 23. Ne5 {[%emt 0:01:48]} 1/2-1/2

[Event "Fagernes Chess GM-Swiss 2024"]
[Site "Fagernes"]
[Date "2024.03.28"]
[Round "6.39"]
[White "Thangavel, Gokul"]
[Black "Fiskaaen, Martin Holten"]
[Result "0-1"]
[ECO "D00"]
[WhiteElo "1990"]
[BlackElo "2118"]
[Annotator "NA RC"]
[PlyCount "48"]
[EventDate "2024.03.25"]
[EventType "swiss"]
[EventCountry "NOR"]
[SourceTitle "playchess.com"]
[Source "ChessBase"]
[SourceQuality "1"]
[TimeControl "40/6000+30:2400+30"]

1. d4 {[%emt 0:00:09]} Nf6 {[%emt 0:00:27]} 2. Nc3 {[%emt 0:00:27]} d5 {[%emt 0:00:41]} 3. Bf4 {[%emt 0:00:04]} e6 {[%emt 0:03:50]} 4. e3 {[%emt 0:02:27]} Bb4 {[%emt 0:02:13]} 5. f3 {[%emt 0:06:04]} c5 {[%emt 0:15:38]} 6. dxc5 {[%emt 0:07:17]} Nbd7 {[%emt 0:09:45]} 7. Qd2 {[%emt 0:06:15]} O-O {[%emt 0:07:47]} ({Much weaker is} 7... Nxc5 $6 8. a3 Bxc3 9. Qxc3 $11) (7... Bxc5 $15 8. Na4 Be7) 8. Bd6 {[%emt 0:03:47]} Re8 {[%emt 0:01:31]} 9. Qd4 {[%emt 0:01:24] [#]} ({Günstiger ist} 9. Bb5 $11) 9... a5 $1 {[%emt 0:17:20]} ({Reject} 9... Qa5 $6 10. a3 Bxc5 11. Bxc5 Qxc5 (11... Nxc5 12. b4 $16) 12. O-O-O $11) 10. a3 {[%emt 0:17:02]} Bxc5 {[%emt 0:05:14]} 11. Bxc5 {[%emt 0:00:06]} e5 {[%emt 0:00:05]} 12. Qd2 {[%emt 0:00:13]} Nxc5 $17 {[%emt 0:00:58]} 13. O-O-O {[%emt 0:20:10]} Qc7 {[%emt 0:01:35]} 14. Kb1 {[%emt 0:08:34]} Rd8 {[%emt 0:03:27]} 15. g4 {[%emt 0:11:38]} Be6 {[%emt 0:08:00]} 16. Bb5 {[%emt 0:06:19]} d4 {[%emt 0:03:08]} 17. exd4 {[%emt 0:00:34]} exd4 {[%emt 0:00:05]} 18. Na4 {[%emt 0:02:27]} Nd5 {[%emt 0:09:37]} 19. Ne2 {[%emt 0:02:50]} Nxa4 {[%emt 0:00:04]} 20. Bxa4 {[%emt 0:00:08]} Ne3 {[%emt 0:00:04]} 21. Rc1 {[%emt 0:00:37]} Nc4 {[%emt 0:01:14]} 22. Qf4 {[%emt 0:03:48]} Qb6 {[%emt 0:02:25]} 23. Bb3 {[%emt 0:03:14]} Nxa3+ {[%emt 0:01:10]} 24. Ka2 {[%emt 0:01:30]} Nxc2 {[%emt 0:03:22]} 0-1

[Event "Fagernes Chess GM-Swiss 2024"]
[Site "Fagernes"]
[Date "2024.03.28"]
[Round "6.40"]
[White "Vijayakumar, Rishi"]
[Black "Kaewpitakkun, Pantham"]
[Result "1/2-1/2"]
[ECO "A57"]
[WhiteElo "2156"]
[BlackElo "1989"]
[Annotator "RC"]
[PlyCount "100"]
[EventDate "2024.03.25"]
[EventType "swiss"]
[EventCountry "NOR"]
[SourceTitle "playchess.com"]
[Source "ChessBase"]
[SourceQuality "1"]
[TimeControl "40/6000+30:2400+30"]

1. d4 {[%emt 0:00:03]} Nf6 {[%emt 0:00:02]} 2. c4 {[%emt 0:00:05]} c5 {[%emt 0:00:15]} 3. d5 {[%emt 0:00:11]} b5 {[%emt 0:00:13]} 4. cxb5 {[%emt 0:00:17]} a6 {[%emt 0:00:03]} 5. e3 {[%emt 0:00:05]} g6 {[%emt 0:00:16]} 6. Nc3 {[%emt 0:00:06]} Bg7 {[%emt 0:00:08]} 7. e4 {[%emt 0:00:06]} d6 {[%emt 0:00:39]} 8. a4 {[%emt 0:00:10]} O-O {[%emt 0:01:02]} 9. Bc4 {[%emt 0:00:34]} axb5 {[%emt 0:01:37]} 10. Bxb5 {[%emt 0:00:09]} Ba6 {[%emt 0:00:34]} 11. Bd2 {[%emt 0:02:28]} Nfd7 {[%emt 0:06:15]} 12. Nf3 {[%emt 0:06:56]} c4 {[%emt 0:08:20]} 13. Be3 {[%emt 0:04:52]} Qa5 {[%emt 0:05:02]} 14. O-O {[%emt 0:02:36]} Qb4 {[%emt 0:01:28]} 15. Bd4 {[%emt 0:13:24]} Bxd4 {[%emt 0:05:55]} 16. Qxd4 {[%emt 0:00:59]} Bxb5 {[%emt 0:03:34]} 17. axb5 {[%emt 0:02:34]} Rxa1 {[%emt 0:00:13]} 18. Rxa1 {[%emt 0:00:01]} Qxb2 {[%emt 0:00:57]} 19. Rb1 {[%emt 0:00:49]} Qa3 {[%emt 0:00:18]} 20. b6 {[%emt 0:28:28]} Nxb6 {[%emt 0:12:43]} 21. Rxb6 {[%emt 0:00:21]} Qc1+ {[%emt 0:00:05]} 22. Nd1 {[%emt 0:00:12]} c3 {[%emt 0:00:04]} 23. Qxc3 {[%emt 0:14:36]} Qxd1+ {[%emt 0:00:10]} 24. Qe1 {[%emt 0:00:08]} Qc2 {[%emt 0:01:03]} 25. Rb7 {[%emt 0:02:01]} Re8 {[%emt 0:00:39]} 26. h3 {[%emt 0:11:33]} Na6 {[%emt 0:01:38]} 27. Nd4 {[%emt 0:16:18]} Qc8 {[%emt 0:03:40]} 28. Ra7 {[%emt 0:00:22]} Nb4 {[%emt 0:32:42]} 29. Qd2 {[%emt 0:01:42]} Qc5 {[%emt 0:04:09]} 30. Rb7 {[%emt 0:00:19]} Na2 {[%emt 0:00:05]} 31. Nc6 {[%emt 0:00:30]} Qc1+ {[%emt 0:00:09]} 32. Qxc1 {[%emt 0:00:07]} Nxc1 {[%emt 0:00:04]} 33. Rxe7 {[%emt 0:00:39]} Rxe7 {[%emt 0:01:14]} 34. Nxe7+ {[%emt 0:00:01]} Kf8 {[%emt 0:00:16]} 35. Nc8 {[%emt 0:00:11]} Ne2+ {[%emt 0:00:05]} 36. Kf1 {[%emt 0:01:51]} Nc3 {[%emt 0:00:07]} 37. f3 {[%emt 0:00:29]} f5 {[%emt 0:06:43]} 38. Nxd6 {[%emt 0:02:36]} fxe4 {[%emt 0:00:07]} 39. fxe4 {[%emt 0:00:35]} Ke7 {[%emt 0:00:12]} 40. Nc8+ {[%emt 0:00:11]} Kd8 {[%emt 0:00:22]} 41. Nd6 {[%emt 0:02:25]} Ke7 {[%emt 0:00:55]} 42. Nc4 {[%emt 0:00:09]} Nxe4 {[%emt 0:00:08]} 43. Ke2 {[%emt 0:00:05]} Nc3+ {[%emt 0:00:06]} 44. Kf3 {[%emt 0:00:08]} Nxd5 {[%emt 0:00:07]} 45. Ke4 {[%emt 0:00:10]} Ke6 {[%emt 0:00:20]} 46. Nd2 {[%emt 0:00:15]} h6 {[%emt 0:01:02]} 47. Nf1 {[%emt 0:00:00]} Nf6+ {[%emt 0:00:18]} 48. Kf3 {[%emt 0:00:00]} g5 {[%emt 0:00:30]} 49. Ne3 {[%emt 0:00:00]} h5 {[%emt 0:00:57]} 50. g3 {[%emt 0:00:10]} Kf7 {[%emt 0:00:55]} 1/2-1/2

[Event "Fagernes Chess GM-Swiss 2024"]
[Site "Fagernes"]
[Date "2024.03.28"]
[Round "6.41"]
[White "Gandrud, Vegar Koi"]
[Black "Amundsen, Ask"]
[Result "1-0"]
[ECO "D25"]
[WhiteElo "2293"]
[BlackElo "2069"]
[Annotator "RC"]
[PlyCount "81"]
[EventDate "2024.03.25"]
[EventType "swiss"]
[EventCountry "NOR"]
[SourceTitle "playchess.com"]
[Source "ChessBase"]
[SourceQuality "1"]
[TimeControl "40/6000+30:2400+30"]

1. d4 {[%emt 0:01:33]} d5 {[%emt 0:00:15]} 2. c4 {[%emt 0:00:06]} dxc4 {[%emt 0:00:10]} 3. Nf3 {[%emt 0:00:14]} Nf6 {[%emt 0:00:14]} 4. e3 {[%emt 0:00:38]} b5 {[%emt 0:00:13]} 5. a4 {[%emt 0:01:07]} b4 {[%emt 0:00:14]} 6. Bxc4 {[%emt 0:00:32]} e6 {[%emt 0:00:13]} 7. O-O {[%emt 0:04:45]} Be7 {[%emt 0:00:41]} 8. Qe2 {[%emt 0:01:07]} O-O {[%emt 0:01:20]} 9. b3 {[%emt 0:00:45]} Bb7 {[%emt 0:03:29]} 10. Bb2 {[%emt 0:01:19]} c5 {[%emt 0:04:11]} 11. Rd1 {[%emt 0:11:48]} Qc7 {[%emt 0:01:50]} 12. Nbd2 {[%emt 0:06:43]} Nbd7 {[%emt 0:01:50]} 13. Rac1 {[%emt 0:00:00]} Rac8 {[%emt 0:02:53]} 14. Ba6 {[%emt 0:02:57]} Qb6 {[%emt 0:08:09]} 15. Bxb7 {[%emt 0:00:59]} Qxb7 {[%emt 0:00:08]} 16. Ne5 {[%emt 0:09:02]} cxd4 {[%emt 0:05:06]} 17. Nxd7 {[%emt 0:04:28]} Nxd7 {[%emt 0:03:54]} 18. Bxd4 {[%emt 0:00:23]} Bf6 {[%emt 0:02:35]} 19. Nc4 {[%emt 0:03:54]} Qa6 {[%emt 0:03:22]} 20. Bxf6 {[%emt 0:08:00]} Nxf6 {[%emt 0:00:19]} 21. e4 {[%emt 0:00:43]} Rfd8 {[%emt 0:12:29]} 22. Rxd8+ {[%emt 0:06:10]} Rxd8 {[%emt 0:00:06]} 23. Rd1 {[%emt 0:00:11]} Qc8 {[%emt 0:04:08]} 24. f3 {[%emt 0:01:25]} Rxd1+ {[%emt 0:22:45]} 25. Qxd1 {[%emt 0:00:01]} Nd7 {[%emt 0:08:16]} 26. Qd2 {[%emt 0:00:54]} a5 {[%emt 0:08:22]} 27. Kf1 {[%emt 0:10:27]} Qc7 {[%emt 0:01:58]} 28. Nxa5 {[%emt 0:01:06]} h6 {[%emt 0:10:06]} 29. Nc4 {[%emt 0:01:57]} Qb7 {[%emt 0:01:05]} 30. Qd6 {[%emt 0:01:01]} Kh7 {[%emt 0:02:39]} 31. Qe7 {[%emt 0:01:05]} Qc6 {[%emt 0:01:20]} 32. Qxb4 {[%emt 0:00:47]} Nc5 {[%emt 0:00:22]} 33. Qb6 {[%emt 0:03:36]} Qc8 {[%emt 0:01:45]} 34. Nd6 {[%emt 0:00:17]} Qa6+ {[%emt 0:00:32]} 35. Qxa6 {[%emt 0:00:08]} Nxa6 {[%emt 0:00:07]} 36. Nxf7 {[%emt 0:00:48]} Nc5 {[%emt 0:00:18]} 37. a5 {[%emt 0:00:11]} Nxb3 {[%emt 0:00:15]} 38. a6 {[%emt 0:00:15]} Nd2+ {[%emt 0:00:14]} 39. Ke2 {[%emt 0:00:05]} Nc4 {[%emt 0:00:12]} 40. Nd8 {[%emt 0:00:25]} e5 {[%emt 0:00:38]} 41. Nc6 {[%emt 0:40:07]} 1-0